bitfinex/quotes_SOLUSD_20250821
["timestamp","ask_amount","ask_price","bid_price","bid_amount"]
[1755785337853,13.1418512,185.4,185.33,26.0]
[1755785337854,12.4218512,185.38,185.33,38.4218512]
[1755785338056,13.1418512,185.37,185.33,38.4218512]
[1755785338564,13.1418512,185.37,185.31,45.22]
[1755785338565,0.72,185.36,185.31,45.22]
[1755785338768,12.4218512,185.36,185.31,57.6418512]
[1755785338969,12.4218512,185.37,185.32,12.4218512]
[1755785339289,0.72,185.4,185.34,12.4218512]
[1755785339454,12.4218512,185.39,185.34,12.4218512]
[1755785339655,0.72,185.39,185.35,12.4218512]
[1755785339883,12.4218512,185.41,185.36,12.4218512]
[1755785340100,0.72,185.41,185.33,13.59559401]
[1755785340256,0.72,185.41,185.34,26.0]
[1755785340464,12.4218512,185.38,185.34,26.0]
[1755785340771,13.1418512,185.4,185.35,12.4218512]
[1755785340973,12.4218512,185.4,185.35,12.4218512]
[1755785341161,0.72,185.39,185.35,12.4218512]
[1755785341670,12.4218512,185.41,185.36,12.4218512]
[1755785341873,13.2018512,185.41,185.36,12.4218512]
[1755785342170,0.72,185.4,185.36,12.4218512]
[1755785342366,0.72,185.39,185.34,26.0]
[1755785342790,0.72,185.39,185.35,12.4218512]
[1755785342985,0.06,185.41,185.38,12.4218512]
[1755785343308,0.06,185.41,185.4,12.4218512]
[1755785344156,0.06,185.41,185.4,26.13744521]
[1755785344357,0.06,185.43,185.42,39.59559401]
[1755785344588,0.06,185.43,185.42,52.01744521]
[1755785344789,0.06,185.43,185.42,52.07744521]
[1755785345084,0.06,185.43,185.42,52.01744521]
[1755785345286,0.06,185.43,185.41,13.59559401]
[1755785345485,0.06,185.43,185.41,12.4218512]
[1755785345666,0.06,185.43,185.4,26.0]
[1755785345667,0.78,185.43,185.4,38.4218512]
[1755785345987,0.06,185.43,185.4,38.4218512]
[1755785346182,0.72,185.42,185.38,38.4218512]
[1755785346382,0.72,185.41,185.36,71.2]
[1755785346584,0.06,185.43,185.36,12.4218512]
[1755785346792,12.4218512,185.42,185.38,12.4218512]
[1755785346960,13.1418512,185.42,185.37,12.4218512]
[1755785347165,0.72,185.41,185.37,12.4218512]
[1755785347384,13.1418512,185.4,185.36,12.4218512]
[1755785347612,0.06,185.43,185.35,26.0]
[1755785347769,12.4218512,185.42,185.35,26.0]
[1755785348105,12.4218512,185.39,185.34,57.6218512]
[1755785348284,0.72,185.38,185.34,45.2]
[1755785348477,0.72,185.38,185.34,83.6218512]
[1755785348682,13.1418512,185.38,185.34,83.6218512]
[1755785348882,12.4218512,185.36,185.31,12.4218512]
[1755785349074,12.4218512,185.36,185.32,12.4218512]
[1755785349578,13.1418512,185.36,185.32,12.4218512]
[1755785350092,12.4218512,185.37,185.32,12.4218512]
[1755785350294,0.72,185.39,185.33,12.4218512]
[1755785350295,12.4218512,185.38,185.33,12.4218512]
[1755785350492,13.1418512,185.37,185.32,12.4218512]
[1755785350670,13.1418512,185.36,185.32,12.4218512]
[1755785351189,13.1418512,185.35,185.3,38.4218512]
[1755785351378,12.4218512,185.33,185.29,45.23]
[1755785351582,13.1418512,185.33,185.29,45.23]
[1755785352197,13.1418512,185.32,185.29,45.23]
[1755785352376,12.4218512,185.32,185.29,45.23]
[1755785352583,26.0,185.37,185.29,45.23]
[1755785352584,26.72,185.37,185.3,12.4218512]
[1755785352782,12.4218512,185.34,185.29,57.6518512]
[1755785352993,12.4218512,185.34,185.29,45.23]
[1755785353178,13.1418512,185.34,185.29,57.6518512]
[1755785353380,0.72,185.39,185.32,12.4218512]
[1755785353695,12.4218512,185.37,185.32,12.4218512]
[1755785353873,12.4218512,185.37,185.33,12.4218512]
[1755785354068,0.72,185.36,185.33,12.4218512]
[1755785354273,0.72,185.36,185.32,12.4218512]
[1755785354470,26.72,185.39,185.32,12.4218512]
[1755785354690,12.4218512,185.37,185.32,12.4218512]
[1755785355203,12.4218512,185.37,185.29,45.23]
[1755785355402,13.1418512,185.36,185.31,12.4218512]
[1755785355613,12.4218512,185.38,185.33,12.4218512]
[1755785355833,15.81898401,185.43,185.33,12.4218512]
[1755785355834,0.72,185.37,185.33,12.4218512]
[1755785356117,0.72,185.41,185.36,12.4218512]
[1755785356284,0.72,185.41,185.37,12.4218512]
[1755785357494,0.72,185.41,185.33,0.06]
[1755785357495,12.4818512,185.43,185.38,12.4218512]
[1755785357693,12.4818512,185.43,185.37,12.4218512]
[1755785357694,13.1318512,185.42,185.37,12.4218512]
[1755785357900,12.4218512,185.4,185.35,12.4218512]
[1755785358103,13.1318512,185.39,185.34,83.6218512]
[1755785358315,0.06,185.43,185.31,26.0]
[1755785358316,12.4218512,185.36,185.31,26.0]
[1755785358607,13.1318512,185.35,185.3,57.6218512]
[1755785358807,13.1318512,185.34,185.3,45.2]
[1755785359016,12.4218512,185.33,185.3,45.2]
[1755785359211,13.1318512,185.33,185.3,45.2]
[1755785359502,12.4218512,185.33,185.29,0.03]
[1755785359711,12.4218512,185.3,185.29,0.03]
[1755785360077,12.4218512,185.31,185.29,0.03]
[1755785360513,13.1318512,185.33,185.29,0.03]
[1755785360811,0.71,185.31,185.29,0.03]
[1755785361202,12.4218512,185.33,185.29,0.03]
[1755785361708,12.4218512,185.35,185.3,12.4218512]
[1755785361891,13.1318512,185.36,185.31,12.4218512]
[1755785362124,13.1318512,185.35,185.3,12.4218512]
[1755785362482,0.71,185.34,185.3,12.4218512]
[1755785362689,0.71,185.33,185.29,12.4518512]
[1755785362995,26.0,185.37,185.29,12.4518512]
[1755785362996,26.71,185.37,185.3,12.4218512]
[1755785363184,26.71,185.37,185.31,12.4218512]
[1755785363185,12.4218512,185.36,185.31,12.4218512]
[1755785363391,12.4218512,185.37,185.29,0.03]
[1755785363592,13.1318512,185.37,185.32,12.4218512]
[1755785363805,0.71,185.36,185.32,12.4218512]
[1755785364008,0.71,185.35,185.31,12.4218512]
[1755785364205,13.1318512,185.34,185.29,0.03]
[1755785364508,0.71,185.34,185.3,12.4218512]
[1755785364709,12.4218512,185.36,185.31,12.4218512]
[1755785365214,12.4218512,185.33,185.29,0.03]
[1755785365395,12.4218512,185.34,185.29,12.4518512]
[1755785365719,12.4218512,185.35,185.3,12.4218512]
[1755785365897,12.4218512,185.38,185.33,12.4218512]
[1755785366101,0.71,185.38,185.34,12.4218512]
[1755785366300,12.4218512,185.39,185.34,12.4218512]
[1755785366601,0.71,185.37,185.33,12.4218512]
[1755785367519,12.4218512,185.34,185.29,0.03]
[1755785367696,12.4218512,185.33,185.29,0.03]
[1755785367894,13.1318512,185.33,185.29,0.03]
[1755785368096,12.4218512,185.31,185.29,0.03]
[1755785368798,0.71,185.3,185.29,0.03]
[1755785369121,13.1318512,185.3,185.29,0.03]
[1755785370316,0.71,185.34,185.29,0.03]
[1755785370484,12.4218512,185.32,185.29,0.03]
[1755785371213,13.1318512,185.32,185.29,0.03]
[1755785372012,12.4218512,185.34,185.29,12.4518512]
[1755785372317,0.71,185.34,185.3,12.4218512]
[1755785372516,13.1318512,185.33,185.29,0.03]
[1755785372732,12.4218512,185.34,185.3,12.4218512]
[1755785373020,0.71,185.33,185.29,0.03]
[1755785373310,12.4218512,185.3,185.29,0.03]
[1755785373531,0.71,185.32,185.29,0.03]
[1755785373693,0.71,185.33,185.29,0.03]
[1755785373901,13.1318512,185.33,185.29,0.03]
[1755785374104,0.71,185.36,185.29,0.03]
[1755785374405,0.71,185.36,185.31,12.4218512]
[1755785374406,13.1318512,185.36,185.31,12.4218512]
[1755785374604,0.71,185.35,185.31,12.4218512]
[1755785374805,0.71,185.34,185.31,12.4218512]
[1755785375023,0.71,185.34,185.29,12.4518512]
[1755785375024,0.71,185.33,185.29,12.4518512]
[1755785375334,26.0,185.38,185.29,0.03]
[1755785375335,12.4218512,185.31,185.29,0.03]
[1755785375692,0.71,185.3,185.29,0.03]
[1755785376240,13.1318512,185.3,185.29,0.03]
[1755785376407,12.4218512,185.32,185.29,0.03]
[1755785376597,0.71,185.39,185.31,12.4218512]
[1755785376796,12.4218512,185.38,185.29,0.03]
[1755785376993,12.4218512,185.37,185.32,12.4218512]
[1755785377301,0.71,185.39,185.29,26.09]
[1755785377508,0.06,185.4,185.36,12.4218512]
[1755785377904,13.1318512,185.39,185.32,26.0]
[1755785378134,12.4218512,185.35,185.29,0.03]
[1755785378447,8.79791817,185.35,185.3,8.08791817]
[1755785378647,8.08791817,185.35,185.3,8.08791817]
[1755785378933,8.08791817,185.32,185.29,0.03]
[1755785379424,0.71,185.31,185.29,0.03]
[1755785379636,0.71,185.32,185.29,0.03]
[1755785380011,0.71,185.35,185.3,8.08791817]
[1755785380227,0.71,185.34,185.3,8.08791817]
[1755785380405,13.0732814,185.34,185.29,12.3932814]
[1755785380607,13.0732814,185.33,185.29,0.03]
[1755785380917,12.3632814,185.32,185.29,0.03]
[1755785381123,13.0732814,185.32,185.29,0.03]
[1755785381429,12.3632814,185.3,185.29,0.03]
[1755785381923,13.0732814,185.3,185.29,0.03]
[1755785382518,12.3632814,185.31,185.29,0.03]
[1755785382738,12.3632814,185.32,185.29,0.03]
[1755785382926,12.3632814,185.31,185.29,0.03]
[1755785383131,0.71,185.3,185.29,0.03]
[1755785383954,12.3632814,185.31,185.29,0.03]
[1755785384118,12.3632814,185.34,185.29,12.3932814]
[1755785384319,0.71,185.34,185.3,12.3632814]
[1755785384536,13.0732814,185.34,185.29,12.3932814]
[1755785384724,0.71,185.33,185.29,12.3932814]
[1755785385044,13.0732814,185.32,185.29,0.03]
[1755785385233,0.71,185.32,185.29,0.03]
[1755785385435,0.71,185.32,185.29,12.3932814]
[1755785385621,0.71,185.32,185.29,0.03]
[1755785386329,0.71,185.31,185.29,0.03]
[1755785386732,12.3632814,185.3,185.29,0.03]
[1755785386929,13.0832814,185.3,185.29,0.03]
[1755785387454,12.3632814,185.32,185.29,0.03]
[1755785387751,13.0832814,185.33,185.29,0.03]
[1755785387920,13.0832814,185.34,185.29,12.3932814]
[1755785388120,0.72,185.33,185.29,12.3932814]
[1755785388324,13.0832814,185.35,185.3,12.3632814]
[1755785388544,12.3632814,185.34,185.29,12.3932814]
[1755785388750,12.3632814,185.37,185.32,12.3632814]
[1755785389252,13.0832814,185.37,185.32,12.3632814]
[1755785389457,71.22,185.4,185.36,12.3632814]
[1755785389458,0.06,185.4,185.36,12.3632814]
[1755785389638,0.78,185.4,185.36,12.3632814]
[1755785390355,0.78,185.4,185.37,12.3632814]
[1755785390927,0.72,185.39,185.32,26.0]
[1755785391125,12.4232814,185.4,185.32,26.0]
[1755785391126,12.4232814,185.4,185.35,12.3632814]
[1755785391320,0.06,185.4,185.37,12.3632814]
[1755785392258,0.06,185.4,185.38,12.3632814]
[1755785392753,0.06,185.4,185.34,0.06]
[1755785393064,0.06,185.4,185.38,12.3632814]
[1755785393222,0.06,185.4,185.34,0.06]
[1755785393223,0.06,185.4,185.39,12.3632814]
[1755785393551,0.06,185.4,185.38,12.3632814]
[1755785393925,0.06,185.4,185.34,0.06]
[1755785394128,0.06,185.4,185.38,12.3632814]
[1755785394654,0.06,185.4,185.34,0.06]
[1755785394948,0.06,185.4,185.36,12.3632814]
[1755785395159,13.1432814,185.4,185.35,12.3632814]
[1755785395452,0.78,185.4,185.32,26.0]
[1755785395654,12.3632814,185.38,185.33,12.3632814]
[1755785395859,0.06,185.4,185.33,12.3632814]
[1755785396152,13.0832814,185.37,185.33,12.3632814]
[1755785396354,12.3632814,185.39,185.34,12.3632814]
[1755785396560,13.0832814,185.39,185.34,12.3632814]
[1755785396724,12.3632814,185.37,185.3,26.0]
[1755785396924,12.3632814,185.38,185.33,12.3632814]
[1755785397130,12.3632814,185.39,185.34,12.3632814]
[1755785397751,0.06,185.4,185.3,26.0]
[1755785397752,13.0832814,185.38,185.3,26.0]
[1755785397942,13.0832814,185.38,185.33,12.3632814]
[1755785398146,12.3632814,185.39,185.34,12.3632814]
[1755785398348,12.4232814,185.4,185.35,12.3632814]
[1755785398559,13.0832814,185.39,185.34,12.3632814]
[1755785399851,0.06,185.4,185.38,12.3632814]
[1755785400054,0.06,185.4,185.39,12.3632814]
[1755785400648,0.78,185.4,185.35,13.59559401]
[1755785400852,0.78,185.4,185.34,26.0]
[1755785401164,0.78,185.4,185.36,12.3632814]
[1755785401372,0.78,185.4,185.37,12.3632814]
[1755785401742,0.06,185.4,185.37,12.3632814]
[1755785401958,0.06,185.4,185.38,12.3632814]
[1755785402359,0.06,185.4,185.38,8.08057915]
[1755785402560,0.06,185.42,185.41,39.59559401]
[1755785402768,0.06,185.44,185.42,13.59559401]
[1755785402937,0.06,185.49,185.44,39.59559401]
[1755785403141,0.06,185.49,185.44,47.67617316]
[1755785403970,0.06,185.49,185.44,34.08057915]
[1755785404149,0.06,185.49,185.43,26.0]
[1755785404348,0.06,185.49,185.44,21.67617316]
[1755785404761,0.06,185.49,185.44,29.75675231]
[1755785404963,0.06,185.49,185.48,34.08057915]
[1755785405363,0.06,185.49,185.48,8.08057915]
[1755785407350,0.78,185.49,185.48,8.08057915]
[1755785407851,0.78,185.49,185.45,26.0]
[1755785408047,0.72,185.48,185.4,13.59559401]
[1755785408267,0.72,185.48,185.46,8.08057915]
[1755785408464,0.72,185.47,185.42,26.0]
[1755785408675,0.06,185.49,185.46,8.08057915]
[1755785408983,0.06,185.49,185.48,8.08057915]
[1755785409785,0.06,185.49,185.48,47.67617316]
[1755785409956,0.06,185.51,185.5,34.08057915]
[1755785410283,0.06,185.53,185.5,34.08057915]
[1755785410453,0.06,185.53,185.52,8.08057915]
[1755785411682,0.06,185.53,185.52,21.67617316]
[1755785412256,0.06,185.53,185.52,13.59559401]
[1755785412457,0.06,185.53,185.52,27.06642758]
[1755785412679,0.06,185.53,185.52,21.67617316]
[1755785413061,0.06,185.53,185.52,27.06642758]
[1755785413378,0.06,185.53,185.52,21.67617316]
[1755785415054,0.06,185.53,185.52,34.08057915]
[1755785415371,0.06,185.53,185.52,79.14057915]
[1755785415762,0.06,185.53,185.49,13.59559401]
[1755785415961,0.78,185.53,185.5,8.08057915]
[1755785416380,0.72,185.52,185.49,53.12057915]
[1755785416554,0.06,185.53,185.51,8.08057915]
[1755785416759,0.06,185.53,185.49,45.04]
[1755785416760,0.06,185.53,185.52,34.08057915]
[1755785417171,0.06,185.53,185.52,47.67617316]
[1755785417979,0.06,185.57,185.56,13.59559401]
[1755785418157,0.06,185.57,185.56,58.63559401]
[1755785418570,0.06,185.57,185.56,34.08057915]
[1755785418769,0.06,185.57,185.56,53.12057915]
[1755785419491,0.06,185.57,185.56,8.08057915]
[1755785420062,0.77,185.57,185.46,8.08057915]
[1755785420264,8.85057915,185.57,185.53,26.0]
[1755785420577,0.06,185.57,185.56,8.08057915]
[1755785420983,0.77,185.57,185.53,71.04]
[1755785421169,0.77,185.57,185.56,21.67617316]
[1755785421170,0.06,185.57,185.56,21.67617316]
[1755785421370,0.06,185.57,185.56,8.08057915]
[1755785421595,0.06,185.57,185.54,13.59559401]
[1755785421799,0.71,185.56,185.53,53.10057915]
[1755785421969,0.71,185.55,185.53,45.02]
[1755785422364,8.14057915,185.57,185.45,2.160702]
[1755785422365,0.71,185.54,185.45,5.39228902]
[1755785422564,8.08057915,185.53,185.44,13.62559401]
[1755785422786,8.08057915,185.49,185.44,0.03]
[1755785423000,8.79057915,185.48,185.44,0.03]
[1755785423194,0.71,185.48,185.44,8.11057915]
[1755785423391,0.71,185.51,185.47,8.08057915]
[1755785423578,0.71,185.5,185.46,8.08057915]
[1755785423778,0.71,185.49,185.46,8.08057915]
[1755785423991,0.71,185.48,185.45,8.08057915]
[1755785424209,0.06,185.57,185.48,39.59559401]
[1755785424372,0.77,185.57,185.55,8.08057915]
[1755785424576,0.06,185.57,185.55,8.08057915]
[1755785425064,0.06,185.57,185.56,8.08057915]
[1755785425270,0.06,185.57,185.56,21.67617316]
[1755785425507,0.06,185.57,185.56,53.06526563]
[1755785425692,0.06,185.57,185.56,51.37584478]
[1755785425887,0.06,185.57,185.56,51.91475402]
[1755785426098,0.06,185.57,185.56,51.37584478]
[1755785426310,0.06,185.57,185.56,21.67617316]
[1755785426610,0.06,185.57,185.56,26.0]
[1755785426786,0.06,185.57,185.56,34.08057915]
[1755785427425,0.06,185.57,185.56,47.67617316]
[1755785427905,0.06,185.57,185.56,21.67617316]
[1755785428102,0.06,185.57,185.56,53.06526563]
[1755785428310,0.06,185.57,185.56,27.06526563]
[1755785428697,0.06,185.57,185.56,21.67617316]
[1755785428916,0.06,185.57,185.56,66.67617316]
[1755785429094,0.06,185.57,185.55,21.67617316]
[1755785429400,0.06,185.57,185.56,8.08057915]
[1755785429604,0.06,185.57,185.52,26.03]
[1755785429605,0.71,185.56,185.52,26.03]
[1755785429780,0.71,185.55,185.53,45.0]
[1755785429981,0.06,185.57,185.54,8.08057915]
[1755785430196,0.06,185.57,185.55,8.08057915]
[1755785430706,0.71,185.56,185.52,0.03]
[1755785430879,0.71,185.55,185.52,0.03]
[1755785431284,0.06,185.57,185.52,8.11057915]
[1755785431285,8.85057915,185.57,185.52,8.11057915]
[1755785431491,0.71,185.56,185.52,8.11057915]
[1755785431700,0.06,185.57,185.54,8.08057915]
[1755785431928,0.06,185.57,185.52,0.03]
[1755785431929,0.71,185.56,185.52,0.03]
[1755785432144,8.08057915,185.53,185.5,0.03]
[1755785432288,8.08057915,185.51,185.5,0.03]
[1755785432687,8.14057915,185.57,185.5,0.03]
[1755785432688,0.71,185.54,185.5,0.03]
[1755785432917,8.08057915,185.53,185.5,0.03]
[1755785433108,8.79057915,185.53,185.5,0.03]
[1755785433314,0.71,185.52,185.5,0.03]
[1755785433540,0.06,185.57,185.51,8.08057915]
[1755785433541,0.77,185.57,185.51,8.08057915]
[1755785433829,0.77,185.57,185.5,0.03]
[1755785433830,0.77,185.57,185.52,8.08057915]
[1755785434030,0.71,185.56,185.52,8.08057915]
[1755785434250,0.06,185.57,185.55,8.08057915]
[1755785434434,0.06,185.57,185.55,13.59559401]
[1755785434622,0.06,185.57,185.56,8.08057915]
[1755785434810,0.77,185.57,185.55,8.08057915]
[1755785435011,0.06,185.57,185.54,26.0]
[1755785435210,0.71,185.56,185.54,26.0]
[1755785435511,0.77,185.57,185.54,34.08057915]
[1755785435713,0.06,185.57,185.55,8.08057915]
[1755785435914,0.06,185.57,185.56,8.08057915]
[1755785436717,0.77,185.57,185.54,34.08057915]
[1755785436932,0.77,185.57,185.55,8.08057915]
[1755785436933,0.06,185.57,185.55,8.08057915]
[1755785437306,0.06,185.57,185.56,8.08057915]
[1755785437711,0.06,185.57,185.56,21.67617316]
[1755785438442,0.06,185.57,185.56,8.08057915]
[1755785439038,0.06,185.57,185.56,8.11057915]
[1755785439233,0.06,185.57,185.56,21.67617316]
[1755785439514,0.06,185.57,185.56,66.65617316]
[1755785440622,0.77,185.57,185.56,8.08057915]
[1755785440918,0.77,185.57,185.55,53.06057915]
[1755785441138,0.77,185.57,185.55,44.98]
[1755785441332,0.06,185.57,185.55,53.06057915]
[1755785441933,0.06,185.57,185.56,8.08057915]
[1755785442337,0.06,185.57,185.56,21.67617316]
[1755785442720,0.06,185.57,185.56,8.08057915]
[1755785443245,0.06,185.57,185.55,70.98]
[1755785443437,8.08057915,185.56,185.53,44.98]
[1755785443740,0.71,185.56,185.53,53.06057915]
[1755785444255,0.06,185.57,185.55,8.08057915]
[1755785444418,0.06,185.57,185.54,13.59559401]
[1755785444759,0.06,185.57,185.56,8.08057915]
[1755785444966,0.06,185.57,185.56,66.65617316]
[1755785445628,0.06,185.57,185.56,72.04526563]
[1755785445827,0.06,185.57,185.56,72.07526563]
[1755785446023,0.06,185.57,185.56,80.15584478]
[1755785446424,0.06,185.58,185.57,13.59559401]
[1755785446630,0.06,185.58,185.57,29.78675231]
[1755785447222,0.06,185.59,185.57,46.01675231]
[1755785447423,0.06,185.61,185.6,39.59559401]
[1755785447627,0.06,185.61,185.6,92.65617316]
[1755785448023,0.06,185.61,185.6,98.07410419]
[1755785448445,0.06,185.61,185.6,98.04410419]
[1755785449148,0.06,185.61,185.6,98.07410419]
[1755785449454,0.06,185.61,185.6,98.04410419]
[1755785450349,0.06,185.61,185.6,92.65617316]
[1755785450554,0.06,185.61,185.6,84.57559401]
[1755785450850,0.06,185.61,185.6,92.63617316]
[1755785452425,0.06,185.61,185.52,13.59559401]
[1755785452426,0.78,185.61,185.52,13.59559401]
[1755785452640,8.86057915,185.61,185.57,8.08057915]
[1755785452845,0.72,185.6,185.58,44.96]
[1755785453044,0.72,185.59,185.58,44.96]
[1755785453453,0.06,185.61,185.58,53.04057915]
[1755785453753,0.72,185.6,185.58,44.96]
[1755785453935,0.72,185.59,185.58,53.04057915]
[1755785454139,0.72,185.59,185.58,53.02057915]
[1755785454337,0.72,185.59,185.57,8.08057915]
[1755785454553,0.06,185.61,185.58,53.02057915]
[1755785454753,0.06,185.61,185.58,44.94]
[1755785454941,0.06,185.61,185.58,53.02057915]
[1755785455139,0.06,185.61,185.6,8.08057915]
[1755785455346,0.06,185.61,185.6,53.02057915]
[1755785455546,0.06,185.61,185.56,26.0]
[1755785455749,0.06,185.61,185.57,79.02057915]
[1755785455953,0.72,185.6,185.58,44.94]
[1755785457228,0.06,185.61,185.58,44.94]
[1755785457429,0.78,185.61,185.59,8.08057915]
[1755785457630,0.06,185.61,185.59,8.08057915]
[1755785457855,0.72,185.6,185.58,53.02057915]
[1755785458050,0.72,185.59,185.58,53.02057915]
[1755785458251,0.72,185.59,185.58,44.94]
[1755785458630,0.72,185.59,185.58,53.02057915]
[1755785458942,0.06,185.61,185.58,53.02057915]
[1755785458943,0.78,185.61,185.58,53.02057915]
[1755785459152,0.06,185.61,185.59,8.08057915]
[1755785459341,0.06,185.61,185.6,44.94]
[1755785459939,0.06,185.61,185.49,5.42111394]
[1755785459940,8.14057915,185.61,185.49,5.42111394]
[1755785460164,8.80057915,185.6,185.55,8.08057915]
[1755785460332,8.08057915,185.56,185.48,0.03]
[1755785460527,8.08057915,185.51,185.48,0.03]
[1755785460757,8.08057915,185.49,185.48,0.03]
[1755785461142,0.72,185.49,185.48,0.03]
[1755785461561,0.72,185.52,185.48,0.03]
[1755785461762,0.72,185.49,185.48,0.03]
[1755785462300,0.72,185.51,185.48,0.03]
[1755785462761,0.72,185.5,185.48,0.03]
[1755785463157,0.72,185.5,185.48,8.11057915]
[1755785463738,8.08057915,185.53,185.48,8.11057915]
[1755785463944,8.08057915,185.51,185.48,0.03]
[1755785464144,8.80057915,185.52,185.48,0.03]
[1755785464446,8.08057915,185.49,185.48,0.03]
[1755785464857,8.80057915,185.49,185.48,0.03]
[1755785465061,0.72,185.51,185.48,0.03]
[1755785465376,34.08057915,185.57,185.48,0.03]
[1755785465377,0.72,185.49,185.48,0.03]
[1755785465573,26.0,185.55,185.48,0.03]
[1755785465574,8.08057915,185.51,185.48,0.03]
[1755785465873,0.72,185.54,185.5,8.08057915]
[1755785466177,0.72,185.53,185.48,44.97]
[1755785466776,0.72,185.52,185.48,44.97]
[1755785467293,0.72,185.51,185.48,44.97]
[1755785467473,0.72,185.54,185.49,8.08057915]
[1755785467654,0.72,185.58,185.53,8.08057915]
[1755785467852,0.72,185.57,185.54,8.08057915]
[1755785468178,3.67327461,185.63,185.52,44.94]
[1755785468179,0.72,185.56,185.52,44.94]
[1755785468386,0.72,185.56,185.54,8.08057915]
[1755785468561,0.72,185.55,185.52,44.94]
[1755785468768,0.72,185.54,185.52,44.94]
[1755785469076,39.65559401,185.61,185.52,44.94]
[1755785469279,0.72,185.54,185.52,44.94]
[1755785469579,0.72,185.57,185.53,8.08057915]
[1755785469875,0.72,185.57,185.54,8.08057915]
[1755785470072,26.06,185.61,185.52,44.94]
[1755785470073,0.72,185.6,185.52,44.94]
[1755785470372,0.72,185.6,185.55,8.08057915]
[1755785470373,8.80057915,185.6,185.55,8.08057915]
[1755785470671,8.80057915,185.59,185.55,8.08057915]
[1755785470870,0.72,185.58,185.55,34.08057915]
[1755785471044,0.72,185.58,185.57,26.0]
[1755785471475,0.78,185.61,185.57,34.08057915]
[1755785471649,0.78,185.61,185.59,26.0]
[1755785471855,0.78,185.61,185.6,26.0]
[1755785472048,0.06,185.61,185.6,26.0]
[1755785472254,0.06,185.61,185.57,34.08057915]
[1755785472463,0.06,185.61,185.57,79.00057915]
[1755785472664,8.80057915,185.6,185.57,26.0]
[1755785472861,8.08057915,185.58,185.57,26.0]
[1755785473060,8.80057915,185.58,185.53,70.92]
[1755785473380,0.78,185.61,185.56,8.08057915]
[1755785473578,8.08057915,185.58,185.53,26.0]
[1755785473785,0.72,185.58,185.54,8.08057915]
[1755785474080,0.72,185.57,185.56,26.0]
[1755785474284,0.72,185.57,185.54,8.08057915]
[1755785474472,0.72,185.56,185.53,53.00057915]
[1755785474851,0.06,185.61,185.53,53.00057915]
[1755785475157,8.08057915,185.6,185.55,8.08057915]
[1755785475352,8.08057915,185.56,185.5,1.0]
[1755785475546,8.08057915,185.52,185.5,1.0]
[1755785475753,0.72,185.51,185.5,1.0]
[1755785476376,0.72,185.53,185.5,1.0]
[1755785476581,0.72,185.52,185.5,1.0]
[1755785476761,8.08057915,185.51,185.5,0.28]
[1755785476965,8.79057915,185.51,185.5,0.28]
[1755785479677,8.79057915,185.51,185.5,0.31]
[1755785479896,8.79057915,185.51,185.46,0.03]
[1755785480064,8.79057915,185.51,185.42,0.03]
[1755785480065,42.1611583,185.47,185.42,0.03]
[1755785480262,8.08057915,185.43,185.42,0.03]
[1755785480700,8.79057915,185.43,185.42,0.03]
[1755785480868,8.08057915,185.41,185.4,0.03]
[1755785481397,8.79057915,185.41,185.4,0.03]
[1755785483486,8.08057915,185.41,185.4,0.03]
[1755785483790,0.71,185.41,185.4,0.03]
[1755785483981,8.79057915,185.41,185.4,0.03]
[1755785485580,8.08057915,185.41,185.4,0.03]